Cogmind - Beta 15 @@@ ROGUE MODE // 2025.05.18 @ 13:28:35 Player: Cheeriohz Result: Destroyed by SP-JX1(R) with Subdweller Beam Cannon Performance ------------- Evolutions (0) 0 Regions Visited (2) 400 Robots Destroyed (22) 110 Value Destroyed (438) 438 Prototype IDs (0) 0 Alien Tech Used (0) 0 Bonus (-28) -28 TOTAL SCORE: 920 Bonus ------- Friendly Fire -28 Cogmind --------- Core Integrity 0/250 Matter 204/300 Energy 100/100 System Corruption 1% Temperature Cool (9) Movement Rolling (120) Ox1 Location -10/Subcaves Parts ------- > --- POWER (1) -------- (None) > --- PROPULSION (2) --- Subdweller Monowheel > --- UTILITY (2) ------ High-capacity Storage Unit > --- WEAPON (2) ------- (None) > --- INVENTORY (20) --- Light Treads Wheel Small Storage Unit Improved Terrain Scanner Seismic Detector Peak State ------------ > --- POWER ------------ (None) > --- PROPULSION ------- Light Treads Light Treads > --- UTILITY ---------- High-capacity Storage Unit Seismic Detector > --- WEAPON ----------- Subdweller Laser Battle Cannon > --- INVENTORY -------- Wheel Subdweller Monowheel Small Storage Unit Improved Terrain Scanner Seismic Detector EM Pulse Gun Grenade Launcher [Rating: 9] Favorites ----------- Power Light Ion Engine Engine Light Ion Engine Propulsion Light Treads Treads Light Treads Leg Aluminum Leg Wheel Wheel Utility High-capacity Storage Unit Device Seismic Detector Storage High-capacity Storage Unit Weapon Small Laser Energy Gun Small Laser Ballistic Gun Assault Rifle Ballistic Cannon Battle Cannon Launcher Grenade Launcher Build | -11 -10 -10 ------- Run | Yrd Mat Sub Slots Evolved . | . . . Power . | . . . Propulsion . | . . . Utility . | . . . Weapon . | . . . Parts Attached 17 | 4 3 10 Power 1 | . 1 . Engine 1 | . 1 . Core . | . . . Reactor . | . . . Propulsion 7 | 2 . 5 Treads 2 | . . 2 Leg . | . . . Wheel 5 | 2 . 3 Hover . | . . . Flight . | . . . Utility 3 | 1 1 1 Device 2 | 1 . 1 Storage 1 | . 1 . Processor . | . . . Hackware . | . . . Protection . | . . . Artifact . | . . . Weapon 6 | 1 1 4 Energy Gun 3 | . . 3 Energy Cannon . | . . . Ballistic Gun 1 | 1 . . Ballistic Cannon 1 | . . 1 Launcher 1 | . 1 . Special Weapon . | . . . Impact Weapon . | . . . Slashing Weapon . | . . . Piercing Weapon . | . . . Special Melee Weapon . | . . . Unidentified Prototypes . | . . . Corrupted Parts 1 | . . 1 System Corruption 1 | . . 1 Parts Lost 10 | . . 10 Power 1 | . . 1 Propulsion 3 | . . 3 Utility 1 | . . 1 Weapon 5 | . . 5 Highest Loss Streak 2 | . . 2 To Critical Strikes . | . . . Average Backups 6 | 4 6 6 Power . | 1 . . Propulsion 1 | 2 2 1 Utility 2 | . 2 3 Weapon 1 | 1 1 1 Tool/Special . | . . . Unused Backups 9 | 7 . 2 Power 1 | 1 . . Propulsion 4 | 4 . . Utility 2 | 1 . 1 Weapon 2 | 1 . 1 Tool/Special . | . . . Average Slot Usage (%) 81 | . 100 77 Engine 6 | . 14 5 Treads 18 | . . 22 Wheel 9 | . 28 5 Device 8 | . 14 7 Storage 14 | . 14 14 Energy Gun 14 | . 14 14 Ballistic Gun 6 | . 14 4 Ballistic Cannon 1 | . . 1 Peak Build Rating 9 | 7 7 9 Average Rating 6 | 6 7 6 On Entrance 6 | 6 7 7 Naked Turns . | . . . Heaviest Build 48 | 12 47 48 Greatest Support 40 | 20 20 40 Greatest Overweight (x) 2 | . 2 2 Average Overweight (x) . | . . . Largest Inventory Capacity 20 | 8 20 20 Average Capacity 18 | 8 15 20 Most Carried 9 | 6 7 9 Average Carried 6 | 4 6 6 Final Capacity 20 | 8 20 20 Final Carried 7 | 5 7 5 Class Distribution -------------------- 100% | Mutant Dominant Class ---------------- Mutant | -10/Materials Mutant | -10/Subcaves Resources | -11 -10 -10 ----------- Run | Yrd Mat Sub Matter Collected 572 | 267 12 293 Remotely . | . . . Salvage Created 588 | 158 60 370 Parts 53 | 16 14 23 Haulers Intercepted . | . . . Recyclers Shooed . | . . . Parts Field Recycled . | . . . Retrieved Matter . | . . . Parts Self-Destructed 13 | . . 13 Prevented . | . . . Kills | -11 -10 -10 ------- Run | Yrd Mat Sub Combat Hostiles Destroyed 15 | . 6 9 Guns 9 | . 4 5 Cannons 1 | . . 1 AOE 5 | . 2 3 Classes Destroyed 8 | 2 2 4 Worker 1 | . 1 . Tunneler 5 | 5 . . Recycler 1 | 1 . . Swarmer 7 | . 6 1 Grunt 2 | . . 2 Sentry 1 | . . 1 Artisan 1 | . . 1 Subdweller 5 | . . 5 Best Kill Streak 4 | 4 4 2 Combat Bots Only 3 | . 3 2 Max Kills in Single Turn 3 | 1 3 1 Gunslinging 1 | . 1 . Exploded 2 | . 2 1 Melee . | . . . Uniques/NPCs Destroyed . | . . . Combat | -11 -10 -10 -------- Run | Yrd Mat Sub Hostile Shots Fired 93 | . 16 77 Missed 25 | . 1 24 Hits 68 | . 15 53 Projectile 68 | . 15 53 Critical Strikes 2 | . . 2 Damage Taken 1254 | . 121 1133 Core 275 | . 18 257 Absorbed by Shields . | . . . Core Remaining (%) 100 | 100 . . Volleys Fired 73 | 11 9 53 Largest 2 | 2 2 2 Hottest 120 | 80 60 120 Shots Fired 116 | 22 17 77 Gun 103 | 22 16 65 Cannon 5 | . . 5 Launcher 8 | . 1 7 Special . | . . . Kinetic 39 | 9 8 22 Thermal 56 | 11 8 37 Explosive 8 | . 1 7 Electromagnetic 13 | 2 . 11 Robot Hit Streak 14 | 9 5 14 Robot Miss Streak 5 | 2 2 5 Penetration Max . | . . . Secondary Targets 2 | . 1 1 Max Gunslinging Chain 1 | . 1 1 Shots Hit Robots 66 | 15 8 43 Core Hits 35 | 7 8 20 Critical Kills . | . . . Critical Parts Destroyed 1 | . . 1 Critical Strikes 2 | . . 2 Destroy 1 | . . 1 Corrupt 1 | . . 1 Melee Attacks . | . . . Impact . | . . . Slashing . | . . . Piercing . | . . . Sneak Attacks . | . . . Combat Hostiles . | . . . Follow-up Attacks . | . . . Damage Inflicted 1265 | 206 186 873 Guns 843 | 206 94 543 Cannons 89 | . . 89 Explosions 333 | . 92 241 Melee . | . . . Ramming . | . . . Kinetic 407 | 104 27 276 Thermal 411 | 87 67 257 Explosive 333 | . 92 241 Electromagnetic 114 | 15 . 99 Impact . | . . . Slashing . | . . . Piercing . | . . . Highest Corruption 1 | . . 1 Average Corruption 1 | . . 1 Corruption Purged . | . . . Corruption Blocked . | . . . Effects 7 | . . 7 Message Errors 1 | . . 1 Matter Fused 4 | . . 4 Parts Rejected 1 | . . 1 Data Loss (major) 1 | . . 1 Overload Shots . | . . . Overflow Damage . | . . . Projectiles . | . . . Explosions . | . . . Melee . | . . . Knockbacks 1 | . . 1 Impact . | . . . Kinetic 1 | . . 1 Secondary . | . . . Self-Inflicted Damage 42 | . . 42 Shots 3 | . . 3 Rammed . | . . . Targets Rammed 1 | . . 1 Kicked . | . . . Crushed 1 | . . 1 Highest Temperature 249 | 36 . 249 Average Temperature 89 | 20 . 149 Received Heat Transfer 624 | . . 624 Siege Activations . | . . . Martial Activations . | . . . Shielding Activations . | . . . Robots Disrupted . | . . . Combat Hostiles . | . . . Robots Corrupted . | . . . Combat Hostiles . | . . . Parts Fried . | . . . Impact Corruptions . | . . . Robots Melted . | . . . Combat Hostiles . | . . . Parts Melted 1 | . . 1 Heat Transferred 775 | 200 150 425 Parts Sabotaged . | . . . Parts Stolen . | . . . Parts Stripped . | . . . Power Chain Reactions . | . . . Alert | -11 -10 -10 ------- Run | Yrd Mat Sub Maximum Alert Level . | . . . Low Security (%) 100 | 100 100 . Level 1 . | . . . Level 2 . | . . . Level 3 . | . . . Level 4 . | . . . Level 5 . | . . . High Security . | . . . Max Security . | . . . Peak Influence 140 | 15 140 . Initial 3 | . 3 . Average 58 | 3 80 . Influence Increases 277 | 30 157 90 Destroy 0b10 Robot/C 200 | . 120 80 Destroy 0b10 Robot/NC 35 | 30 5 . Destroy Leader 30 | . 20 10 Successful Hack 11 | . 11 . Destroy Structure 1 | . 1 . Influence Decreases 277 | 25 122 130 Entered New Map 22 | . 2 20 Time Decay 225 | 25 120 80 Lost Part 30 | . . 30 Squads Dispatched 3 | . 3 . Investigation 1 | . 1 . Extermination . | . . . Reinforcement 2 | . 2 . Assault . | . . . Garrison . | . . . Intercept . | . . . Searches Triggered . | . . . Construction Impeded . | . . . Haulers Reinforced . | . . . Active Scanning Responses . | . . . Cargo Convoy Interrupts . | . . . Stealth | -11 -10 -10 --------- Run | Yrd Mat Sub Distress Signals 1 | . 1 . Communications Jammed . | . . . Distress Signals . | . . . Times Spotted 21 | . 11 10 Peak Tracking Total 6 | . 6 2 Tactical Retreats . | . . . Traps | -11 -10 -10 ------- Run | Yrd Mat Sub Traps Triggered 1 | . 1 . Indirectly . | . . . Trap Hack Attempts . | . . . Triggered . | . . . Disarmed . | . . . Reprogrammed . | . . . Reused . | . . . Traps Extracted . | . . . Installed . | . . . Triggered . | . . . Machines | -11 -10 -10 ---------- Run | Yrd Mat Sub Machines Disabled . | . . . Max in Single Turn . | . . . Machines Repaired . | . . . Machines Dismantled . | . . . Machines Sabotaged . | . . . Overloaded Fab Kills . | . . . Hacking | -11 -10 -10 --------- Run | Yrd Mat Sub Machines Accessed 1 | . 1 . Terminals 1 | . 1 . Fabricators . | . . . Repair Stations . | . . . Recycling Units . | . . . Scanalyzers . | . . . Garrison Access . | . . . Total Hacks 4 | . 4 . Successful 3 | . 3 . Failed 1 | . 1 . Catastrophic . | . . . Database Lockouts . | . . . Manual 4 | . 4 . Terminals 4 | . 4 . Fabricators . | . . . Repair Stations . | . . . Recycling Units . | . . . Scanalyzers . | . . . Garrison Access . | . . . Terminal Hacks 2 | . 2 . Robot Analysis 2 | . 2 . Fabricator Hacks . | . . . Repair Station Hacks . | . . . Recycling Unit Hacks . | . . . Scanalyzer . | . . . Garrison Access Hacks . | . . . Unauthorized Hacks 1 | . 1 . Terminals 1 | . 1 . Botnet 1 | . 1 . Fabricators . | . . . Repair Stations . | . . . Recycling Units . | . . . Scanalyzers . | . . . Garrison Access . | . . . Data Cores Recovered . | . . . Used . | . . . Hacking Detections 1 | . 1 . Full Trace Events . | . . . Feedback Events . | . . . Feedback Blocked . | . . . Robot Schematics Acquired . | . . . Robots Built . | . . . Authchips . | . . . Time . | . . . Total Robot Build Rating . | . . . Part Schematics Acquired . | . . . Parts Built . | . . . Authchips . | . . . Time . | . . . Total Part Build Rating . | . . . Parts Repaired . | . . . Time . | . . . Parts Recycled . | . . . Recycled Matter . | . . . Retrieved Matter . | . . . Retrieved Components . | . . . Parts Scanalyzed . | . . . Part Schematics Acquired . | . . . Parts Damaged . | . . . Bothacking | -11 -10 -10 ------------ Run | Yrd Mat Sub Used RIF Installer . | . . . Robots Hacked . | . . . Non-combat . | . . . Combat . | . . . Robot Hacks Applied . | . . . Relay Couplers Released . | . . . Fabnet Peak Effective % . | . . . Robots Rewired . | . . . Allies Hacked . | . . . Hacks Repelled . | . . . Allies | -11 -10 -10 -------- Run | Yrd Mat Sub Total Allies . | . . . Largest Group . | . . . Highest-Rated Group . | . . . Highest-Rated Ally . | . . . Total Orders . | . . . Ally Attacks . | . . . Total Damage . | . . . Kills . | . . . Allies Corrupted . | . . . Allies Melted . | . . . Intel | -11 -10 -10 ------- Run | Yrd Mat Sub Active Infowar (turns) 915 | 5 242 668 Seismic 915 | 5 242 668 Robot Analysis Total 2 | . 2 . Derelict Logs Recovered 1 | . . 1 Drone Launches . | . . . Drone Recoveries . | . . . Exploration | -11 -10 -10 ------------- Run | Yrd Mat Sub Turns Passed 1556 | 95 242 1219 Spaces Moved 706 | 48 115 543 Core . | . . . Treads 376 | . . 376 Legs 11 | 11 . . Wheels 319 | 37 115 167 Hover . | . . . Flight . | . . . Fastest Speed 80 | 80 80 110 Average Speed 168 | 89 89 192 Slowest Speed 320 | 120 110 320 Overloaded Moves . | . . . Propulsion Burnouts . | . . . Robots Hopped . | . . . Potential Cave-ins . | . . . Cave-ins Triggered . | . . . Exploration Rate (%) 20 | 3 34 23 Regions Visited 2 Branch Regions 1 Pre-discovered Areas . | . . . Known Exits Taken . | . . . Unknown Exits Taken 2 | 1 1 . Scrap Searched 2 | . . 2 Spaces Dug 6 | . . 6 Terrain Destroyed 33 | . . 33 Melee . | . . . Projectile . | . . . AOE 33 | . . 33 Terrain Rammed . | . . . Walls Destroyed . | . . . Machines Disabled . | . . . Actions | -11 -10 -10 --------- Run | Yrd Mat Sub Total 946 | 77 235 634 Wait 127 | 12 105 10 Move 704 | 47 114 543 Hop . | . . . Pick Up 4 | 1 2 1 Fast Attach 8 | 1 . 7 Attach 6 | . . 6 Detach 5 | . . 5 Swap 13 | 3 4 6 Drop 5 | 2 1 2 Fire 73 | 11 9 53 Melee . | . . . Ram . | . . . Kick . | . . . Crush 1 | . . 1 Escape Stasis . | . . . Rewire . | . . . Trap . | . . . Miscellaneous . | . . . Route ------- -11/Scrapyard -10/Materials (discovered 2 exits: [*Min] / [*Sub]) -10/Subcaves History --------- Turn | Location | Event 1 | -11/Scrapyard | Discovered new exit (range 3) 96 | -11/Scrapyard | Entered Materials 168 | -10/Materials | Discovered new exit (range 13) 311 | -10/Materials | Build established: Mutant 319 | -10/Materials | Discovered new exit (range 12) 338 | -10/Materials | Entered Subcaves 339 | -10/Subcaves | Approached by a straggling Scientist 342 | -10/Subcaves | Learned Materials terminal intel 971 | -10/Subcaves | Ambushed by Subdwellers from Twisted Machinery 1433 | -10/Subcaves | Core integrity fell below 50% 1552 | -10/Subcaves | Core integrity fell below 20% 1557 | -10/Subcaves | Destroyed by SP-JX1(R) with Subdweller Beam Cannon Last Messages --------------- 01292_ S7-81Q(O) puts together Humpback. 01306_ Acquired 3 matter. 01327_ System corrupted: Matter fused (-6). 01365_ Acquired Sub. Monowheel. 01372_ System corrupted: Matter fused (-9). 01407_ 86-WXH(R): "LEAVESUB!" 01432_ Sub. Monowheel destroyed. 01444_ System corrupted: Substantial component data lost. 01467_ Lgt. Treads destroyed. 01467_ EM Pulse Gun destroyed. 01469_ Sub. Power Source melted. 01469_ 86-WXH(R) destroyed. 01480_ Acquired Sub. Monowheel. 01483_ Acquired 42 matter. 01488_ System corrupted: Matter fused (-9). 01513_ XD-UN6(R) destroyed. 01513_ Critical hit (Meltdown: +270). 01517_ Grenade Launcher destroyed. 01550_ System corrupted: Sub. Monowheel rejected. Map ----- +----------------------------------------------------+ | ?????????????????????????????????????????????????? | | ?????????????????????????????????????????????????? | | ?????????????????????????????????????????????????? | | ?????????????????????????????????????????????????? | | ?????????????????????????????????????????????????? | | ?????????????????????????????????????????????????? | | ?????????????????????????????????????????????????? | | ?????????????????????????????????????????????????? | | ?????????????????????????????????????????????????? | | ?????????????????????????????????????????????????? | | ?????????????????????????????????????????????????? | | ?????????????????????????????????????????????????? | | ?????????????? ##???????????????????????????????? | | ?????????????? ##?????????????????????????????? | | ?????????????# ?????????????????????????????? | | ?????????????? ????????????????????????????? | | ???????????????? [% ????????????????????????????? | | ????????????????? & ???????????????????????????? | | ?????????????????? ##?????????????????????????? | | ???????????????????? ###??????????????????????? | | ????????????????????? ##?????????????????????? | | ?????????????????????? ##????????????????????? | | ???????????????????????# #????????????????????? | | ???????????????????????# #????????????????????? | | ???????????????????????## #????????????????????? | | ????????????????????????#@ #????????????????????? | | ????????????????????????# #????????????????????? | | ???????????????????????## #????????????????????? | | ???????????????????????# #????????????????????? | | ???????????????????????# #????????????????????? | | ???????????????????????# ##????????????????????? | | ????????????????####???#= #?????????????????????? | | ????????????????# #?###R #?????????????????????? | | ??????????####??# ###"" #?###?????????????????? | | ??????????# #??# ### ##????????????????? | | ??????????# #??### ## ##???????????????? | | ??????????# #?#### ## ### #???????????????? | | ??????????# ### # ### #?# ##??????????????? | | ??????????# # # ###"### #??????????????? | | ??????????# "" ##?#""" #??????????????? | | ??????????## "" #?#"" ##??????????????? | | ???????????## "" #?## ##???????????????? | | ????????????# ##""##??## ##????????????????? | | ???????????## ! #####????## #?????????????????? | | ???????????# ##????????# #?????????????##### | | ???????????# #???????## #??????????#### | | ???????????# ##???????#" ##????????## | | ???????????### ##????????## ###?######"" | | ?????????????# #??????????# ### " | | ????????????## ##??####??## "" "" #### | +----------------------------------------------------+ Best States ------------- Heat Dissipation 25 Energy Generation 10 Energy Capacity 125 Matter Stores 300 Matter Capacity 300 Sight Range 16 Terrain Scan Density 10 Evasion (%) 55 Recoil Reduction 2 Item Schematics ----------------- None Robot Schematics ------------------ None Fabricated ------------ Nothing Repaired ---------- Nothing Alien Tech Used ----------------- None Achievements -------------- None Challenges ------------ None Game ------ Seed DynamicBiometalAutocannon Manual? 0 Play Time 00:10:32 Cumulative 212.1 hours Start 2025.05.18 @ 13:19:03 End 2025.05.18 @ 13:28:35 Sessions 1 Manual Loads 0 Difficulty Rogue Special Mode None Game No. 167 Rogue 167 Adventurer 0 Explorer 0 Win Type - Total 4 Types 2/0/1/1/0/0/0/0/0/0 Lore% 51 Gallery% 70 Achievement% 64 Wizard Run 0 Options --------- Layout 1 ASCII 0 Keyboard 1 Movement Numpad Keybinds 0 Fullscreen 1 Font 48/Smallcaps Map View 55x35 Zoom Use 0% Tactical HUD 1 Map Filters NONE Filters NONE Steam 1 RUN: 93b9eb0f-8fc2-4c8c-8bfb-289cf52ee8b2